[Event "Titled Tuesday Blitz March 14 Early 2023"]
[White "Lobanov, Sergei"]
[Black "Sarana, Alexey"]
[WhiteFideId "24183750"]
[BlackFideId "24133795"]
[WhiteElo "2489"]
[BlackElo "2714"]
[Result "1-0"]
[Round "08"]
[TimeControl "180+2"]
[Date "2023.03.14"]
[WhiteClock "0:00:09"]
[BlackClock "0:00:05"]

1. d4 {[%clk 0:02:59]}  Nf6 {[%clk 0:02:59]} 2. c4 {[%clk 0:03:00]}  e6 {[%clk 0:02:59]} 3. Nc3 {[%clk 0:03:00]}  Bb4 {[%clk 0:03:00]} 4. e3 {[%clk 0:02:59]}  c5 {[%clk 0:02:59]} 5. Bd3 {[%clk 0:02:58]}  Nc6 {[%clk 0:02:59]} 6. Ne2 {[%clk 0:02:58]}  cxd4 {[%clk 0:02:57]} 7. exd4 {[%clk 0:02:58]}  d5 {[%clk 0:02:57]} 8. cxd5 {[%clk 0:02:56]}  exd5 {[%clk 0:02:55]} 9. O-O {[%clk 0:02:56]}  h6 {[%clk 0:02:54]} 10. h3 {[%clk 0:02:50]}  O-O {[%clk 0:02:53]} 11. Be3 {[%clk 0:02:51]}  Re8 {[%clk 0:02:51]} 12. Nf4 {[%clk 0:02:48]}  Qd6 {[%clk 0:02:39]} 13. Qf3 {[%clk 0:02:46]}  Bxc3 {[%clk 0:02:25]} 14. bxc3 {[%clk 0:02:46]}  Ne4 {[%clk 0:02:26]} 15. c4 {[%clk 0:02:33]}  Nb4 {[%clk 0:02:14]} 16. Be2 {[%clk 0:01:32]}  Nc2 {[%clk 0:02:02]} 17. Rad1 {[%clk 0:01:12]}  Nxe3 {[%clk 0:01:49]} 18. fxe3 {[%clk 0:01:11]}  Ng5 {[%clk 0:01:37]} 19. Qxd5 {[%clk 0:01:06]}  Qe7 {[%clk 0:01:38]} 20. Rd3 {[%clk 0:01:01]}  Bd7 {[%clk 0:01:38]} 21. Ng6 {[%clk 0:00:56]}  Qe6 {[%clk 0:01:24]} 22. Ne5 {[%clk 0:00:53]}  Qxd5 {[%clk 0:01:13]} 23. cxd5 {[%clk 0:00:53]}  Bb5 {[%clk 0:01:13]} 24. Rd2 {[%clk 0:00:54]}  Bxe2 {[%clk 0:01:13]} 25. Rxe2 {[%clk 0:00:55]}  Rad8 {[%clk 0:01:13]} 26. h4 {[%clk 0:00:44]}  Ne4 {[%clk 0:01:13]} 27. Rb2 {[%clk 0:00:40]}  f6 {[%clk 0:01:12]} 28. Nd3 {[%clk 0:00:33]}  b6 {[%clk 0:01:08]} 29. Nf4 {[%clk 0:00:34]}  Nc3 {[%clk 0:01:02]} 30. Rf3 {[%clk 0:00:21]}  Nxd5 {[%clk 0:01:00]} 31. Nxd5 {[%clk 0:00:21]}  Rxd5 {[%clk 0:01:01]} 32. Rc2 {[%clk 0:00:22]}  Re7 {[%clk 0:00:55]} 33. Kf2 {[%clk 0:00:22]}  h5 {[%clk 0:00:55]} 34. Rf4 {[%clk 0:00:19]}  Ra5 {[%clk 0:00:55]} 35. g4 {[%clk 0:00:19]}  hxg4 {[%clk 0:00:54]} 36. Rxg4 {[%clk 0:00:20]}  Ra3 {[%clk 0:00:54]} 37. e4 {[%clk 0:00:20]}  Kh7 {[%clk 0:00:51]} 38. d5 {[%clk 0:00:19]}  Rd3 {[%clk 0:00:51]} 39. Rf4 {[%clk 0:00:14]}  Rd4 {[%clk 0:00:50]} 40. Re2 {[%clk 0:00:14]}  Re5 {[%clk 0:00:48]} 41. Kf3 {[%clk 0:00:14]}  b5 {[%clk 0:00:46]} 42. Rc2 {[%clk 0:00:13]}  Kh6 {[%clk 0:00:34]} 43. Rc7 {[%clk 0:00:12]}  Ra4 {[%clk 0:00:28]} 44. Rg4 {[%clk 0:00:11]}  Ra3+ {[%clk 0:00:29]} 45. Kf4 {[%clk 0:00:10]}  g6 {[%clk 0:00:24]} 46. Rf7 {[%clk 0:00:09]}  Ra4 {[%clk 0:00:17]} 47. Kf3 {[%clk 0:00:06]}  Ra3+ {[%clk 0:00:18]} 48. Kf4 {[%clk 0:00:07]}  Ra4 {[%clk 0:00:08]} 49. Kf3 {[%clk 0:00:07]}  Ra6 {[%clk 0:00:09]} 50. Kf4 {[%clk 0:00:06]}  Rh5 {[%clk 0:00:07]} 51. Re7 {[%clk 0:00:04]}  Ra4 {[%clk 0:00:07]} 52. Re6 {[%clk 0:00:04]}  Kg7 {[%clk 0:00:07]} 53. Re7+ {[%clk 0:00:05]}  Kh6 {[%clk 0:00:08]} 54. Re6 {[%clk 0:00:05]}  Rf5+ {[%clk 0:00:07]} 55. Ke3 {[%clk 0:00:04]}  Ra3+ {[%clk 0:00:08]} 56. Kd4 {[%clk 0:00:05]}  Rf2 {[%clk 0:00:08]} 57. Kc5 {[%clk 0:00:04]}  Raxa2 {[%clk 0:00:08]} 58. Kd6 {[%clk 0:00:04]}  b4 {[%clk 0:00:07]} 59. Rg3 {[%clk 0:00:04]}  b3 {[%clk 0:00:07]} 60. Rxb3 {[%clk 0:00:04]}  a5 {[%clk 0:00:08]} 61. Ke7 {[%clk 0:00:04]}  f5 {[%clk 0:00:08]} 62. e5 {[%clk 0:00:04]}  a4 {[%clk 0:00:08]} 63. Rbb6 {[%clk 0:00:04]}  Kh5 {[%clk 0:00:08]} 64. Rxg6 {[%clk 0:00:05]}  a3 {[%clk 0:00:08]} 65. Rg5+ {[%clk 0:00:05]}  Kxh4 {[%clk 0:00:09]} 66. Rg8 {[%clk 0:00:05]}  Kh5 {[%clk 0:00:09]} 67. d6 {[%clk 0:00:06]}  Rad2 {[%clk 0:00:06]} 68. d7 {[%clk 0:00:06]}  a2 {[%clk 0:00:07]} 69. Ra6 {[%clk 0:00:06]}  Rfe2 {[%clk 0:00:07]} 70. e6 {[%clk 0:00:07]}  Rd1 {[%clk 0:00:05]} 71. d8=Q {[%clk 0:00:06]}  Rxd8 {[%clk 0:00:03]} 72. Kxd8 {[%clk 0:00:07]}  f4 {[%clk 0:00:04]} 73. e7 {[%clk 0:00:07]}  f3 {[%clk 0:00:04]} 74. e8=Q+ {[%clk 0:00:08]}  Rxe8+ {[%clk 0:00:04]} 75. Kxe8 {[%clk 0:00:09]}  f2 {[%clk 0:00:05]} 76. Rf8 {[%clk 0:00:09]} 1-0


[Site "https://www.chess.com"]

[Event "Titled Tuesday Blitz March 14 Early 2023"]
[White "Caruana, Fabiano"]
[Black "Aditya Mittal"]
[WhiteFideId "2020009"]
[BlackFideId "35042025"]
[WhiteElo "2818"]
[BlackElo "2396"]
[Result "1-0"]
[Round "08"]
[TimeControl "180+2"]
[Date "2023.03.14"]
[WhiteClock "0:00:33"]
[BlackClock "0:00:09"]

1. b3 {[%clk 0:03:00]}  d5 {[%clk 0:02:57]} 2. Bb2 {[%clk 0:03:00]}  Nf6 {[%clk 0:02:58]} 3. e3 {[%clk 0:03:00]}  Bf5 {[%clk 0:02:58]} 4. Nf3 {[%clk 0:03:00]}  e6 {[%clk 0:02:58]} 5. Nh4 {[%clk 0:03:00]}  Bg6 {[%clk 0:02:55]} 6. Nxg6 {[%clk 0:02:58]}  hxg6 {[%clk 0:02:55]} 7. d3 {[%clk 0:02:58]}  c5 {[%clk 0:02:55]} 8. Nd2 {[%clk 0:02:58]}  Nc6 {[%clk 0:02:56]} 9. g3 {[%clk 0:02:58]}  Bd6 {[%clk 0:02:54]} 10. Bg2 {[%clk 0:02:58]}  Qc7 {[%clk 0:02:31]} 11. Qe2 {[%clk 0:02:57]}  b5 {[%clk 0:02:17]} 12. O-O {[%clk 0:02:54]}  a5 {[%clk 0:02:14]} 13. c4 {[%clk 0:02:54]}  bxc4 {[%clk 0:02:09]} 14. dxc4 {[%clk 0:02:52]}  Be5 {[%clk 0:02:05]} 15. Bxe5 {[%clk 0:02:47]}  Nxe5 {[%clk 0:02:06]} 16. cxd5 {[%clk 0:02:47]}  exd5 {[%clk 0:02:06]} 17. e4 {[%clk 0:02:30]}  d4 {[%clk 0:01:20]} 18. f4 {[%clk 0:02:30]}  d3 {[%clk 0:01:20]} 19. Qe1 {[%clk 0:02:15]}  Neg4 {[%clk 0:00:50]} 20. e5 {[%clk 0:02:12]}  c4 {[%clk 0:00:40]} 21. exf6+ {[%clk 0:02:12]}  Kf8 {[%clk 0:00:39]} 22. Qe7+ {[%clk 0:02:09]}  Qxe7 {[%clk 0:00:37]} 23. fxe7+ {[%clk 0:02:10]}  Kxe7 {[%clk 0:00:38]} 24. Bxa8 {[%clk 0:02:05]}  c3 {[%clk 0:00:39]} 25. Ne4 {[%clk 0:01:50]}  c2 {[%clk 0:00:38]} 26. Bd5 {[%clk 0:01:44]}  Rxh2 {[%clk 0:00:38]} 27. Rac1 {[%clk 0:01:10]}  f5 {[%clk 0:00:25]} 28. Ng5 {[%clk 0:00:47]}  d2 {[%clk 0:00:11]} 29. Rxc2 {[%clk 0:00:46]}  Ne3 {[%clk 0:00:11]} 30. Rxd2 {[%clk 0:00:34]}  Rxd2 {[%clk 0:00:12]} 31. Re1 {[%clk 0:00:34]}  Kd6 {[%clk 0:00:11]} 32. Rxe3 {[%clk 0:00:34]}  Kxd5 {[%clk 0:00:12]} 33. Re5+ {[%clk 0:00:33]}  Kd6 {[%clk 0:00:09]} 34. Rxa5 {[%clk 0:00:33]} 1-0


[Site "https://www.chess.com"]

[Event "Titled Tuesday Blitz March 14 Early 2023"]
[White "Narayanan, Srinath"]
[Black "Shimanov, Aleksandr"]
[WhiteFideId "5018420"]
[BlackFideId "4198603"]
[WhiteElo "2438"]
[BlackElo "2631"]
[Result "0-1"]
[Round "08"]
[TimeControl "180+2"]
[Date "2023.03.14"]
[WhiteClock "0:00:32"]
[BlackClock "0:00:07"]

1. Nf3 {[%clk 0:03:00]}  d5 {[%clk 0:02:50]} 2. e3 {[%clk 0:03:00]}  Nf6 {[%clk 0:02:49]} 3. c4 {[%clk 0:03:01]}  e6 {[%clk 0:02:49]} 4. b3 {[%clk 0:03:01]}  Bd6 {[%clk 0:02:48]} 5. Bb2 {[%clk 0:03:02]}  b6 {[%clk 0:02:48]} 6. Nc3 {[%clk 0:03:01]}  a6 {[%clk 0:02:47]} 7. Rc1 {[%clk 0:03:00]}  Bb7 {[%clk 0:02:46]} 8. cxd5 {[%clk 0:03:01]}  exd5 {[%clk 0:02:46]} 9. Ne2 {[%clk 0:03:02]}  Qe7 {[%clk 0:02:37]} 10. Ng3 {[%clk 0:02:58]}  g6 {[%clk 0:02:35]} 11. Be2 {[%clk 0:02:52]}  Nbd7 {[%clk 0:02:33]} 12. O-O {[%clk 0:02:47]}  h5 {[%clk 0:02:18]} 13. Re1 {[%clk 0:02:42]}  h4 {[%clk 0:02:15]} 14. Nf1 {[%clk 0:02:41]}  h3 {[%clk 0:02:10]} 15. g3 {[%clk 0:02:41]}  O-O-O {[%clk 0:02:07]} 16. Nd4 {[%clk 0:02:38]}  Nb8 {[%clk 0:01:39]} 17. a3 {[%clk 0:02:30]}  Bxa3 {[%clk 0:01:30]} 18. Bg4+ {[%clk 0:02:05]}  Nxg4 {[%clk 0:01:15]} 19. Qxg4+ {[%clk 0:02:06]}  Rd7 {[%clk 0:00:59]} 20. Bxa3 {[%clk 0:01:38]}  Qxa3 {[%clk 0:01:00]} 21. Nf3 {[%clk 0:01:38]}  Qe7 {[%clk 0:00:55]} 22. d4 {[%clk 0:01:37]}  Qe4 {[%clk 0:00:45]} 23. Qxe4 {[%clk 0:01:37]}  dxe4 {[%clk 0:00:46]} 24. Ne5 {[%clk 0:01:38]}  Re7 {[%clk 0:00:46]} 25. Nd2 {[%clk 0:01:39]}  Bd5 {[%clk 0:00:30]} 26. Ndc4 {[%clk 0:01:37]}  Kb7 {[%clk 0:00:30]} 27. Ng4 {[%clk 0:01:35]}  Nd7 {[%clk 0:00:27]} 28. Nge5 {[%clk 0:01:30]}  Nxe5 {[%clk 0:00:26]} 29. Nxe5 {[%clk 0:01:27]}  Bxb3 {[%clk 0:00:26]} 30. Rc3 {[%clk 0:01:11]}  Bd5 {[%clk 0:00:26]} 31. Rec1 {[%clk 0:01:12]}  a5 {[%clk 0:00:26]} 32. Kf1 {[%clk 0:01:09]}  Rd8 {[%clk 0:00:21]} 33. Ke2 {[%clk 0:01:08]}  g5 {[%clk 0:00:21]} 34. Kd2 {[%clk 0:01:07]}  f6 {[%clk 0:00:16]} 35. Ng4 {[%clk 0:01:07]}  Rd6 {[%clk 0:00:14]} 36. f4 {[%clk 0:00:57]}  exf3 {[%clk 0:00:13]} 37. Nf2 {[%clk 0:00:58]}  f5 {[%clk 0:00:14]} 38. Nxh3 {[%clk 0:00:47]}  Rh6 {[%clk 0:00:11]} 39. Nf2 {[%clk 0:00:43]}  Rxh2 {[%clk 0:00:11]} 40. Ke1 {[%clk 0:00:43]}  f4 {[%clk 0:00:11]} 41. gxf4 {[%clk 0:00:39]}  gxf4 {[%clk 0:00:12]} 42. Ng4 {[%clk 0:00:40]}  Rh1+ {[%clk 0:00:11]} 43. Kf2 {[%clk 0:00:41]}  Rxc1 {[%clk 0:00:10]} 44. Rxc1 {[%clk 0:00:41]}  fxe3+ {[%clk 0:00:10]} 45. Nxe3 {[%clk 0:00:42]}  c6 {[%clk 0:00:10]} 46. Nf5 {[%clk 0:00:42]}  Rd7 {[%clk 0:00:08]} 47. Ke3 {[%clk 0:00:40]}  a4 {[%clk 0:00:08]} 48. Ra1 {[%clk 0:00:41]}  b5 {[%clk 0:00:08]} 49. Kf2 {[%clk 0:00:37]}  Kb6 {[%clk 0:00:08]} 50. Ne3 {[%clk 0:00:37]}  Ka5 {[%clk 0:00:09]} 51. Ng4 {[%clk 0:00:35]}  b4 {[%clk 0:00:07]} 52. Ne5 {[%clk 0:00:35]}  Rc7 {[%clk 0:00:07]} 53. Nd3 {[%clk 0:00:36]}  a3 {[%clk 0:00:05]} 54. Nc5 {[%clk 0:00:36]}  Kb5 {[%clk 0:00:04]} 55. Ke3 {[%clk 0:00:32]}  Ra7 {[%clk 0:00:05]} 56. Kd3 {[%clk 0:00:32]}  b3 {[%clk 0:00:06]} 57. Kc3 {[%clk 0:00:30]}  b2 {[%clk 0:00:06]} 58. Rg1 {[%clk 0:00:31]}  a2 {[%clk 0:00:05]} 59. Kxb2 {[%clk 0:00:31]}  a1=Q+ {[%clk 0:00:05]} 60. Rxa1 {[%clk 0:00:31]}  Rxa1 {[%clk 0:00:06]} 61. Kxa1 {[%clk 0:00:32]}  f2 {[%clk 0:00:07]} 0-1


[Site "https://www.chess.com"]

[Event "Titled Tuesday Blitz March 14 Early 2023"]
[White "Nguyen, Ngoc Truong Son"]
[Black "Fernandez Guillen, Ernesto J."]
[WhiteFideId "12401110"]
[BlackFideId "3512428"]
[WhiteElo "2571"]
[BlackElo "2423"]
[Result "1/2-1/2"]
[Round "08"]
[TimeControl "180+2"]
[Date "2023.03.14"]
[WhiteClock "0:00:05"]
[BlackClock "0:00:06"]

1. d4 {[%clk 0:02:57]}  Nf6 {[%clk 0:03:00]} 2. c4 {[%clk 0:02:57]}  g6 {[%clk 0:03:00]} 3. Nc3 {[%clk 0:02:57]}  d6 {[%clk 0:03:00]} 4. e4 {[%clk 0:02:57]}  Bg7 {[%clk 0:03:00]} 5. f4 {[%clk 0:02:56]}  O-O {[%clk 0:03:00]} 6. Nf3 {[%clk 0:02:56]}  e5 {[%clk 0:02:57]} 7. fxe5 {[%clk 0:02:53]}  dxe5 {[%clk 0:02:57]} 8. d5 {[%clk 0:02:53]}  Nbd7 {[%clk 0:02:50]} 9. Bd3 {[%clk 0:02:46]}  c6 {[%clk 0:02:44]} 10. Be3 {[%clk 0:02:44]}  cxd5 {[%clk 0:02:44]} 11. cxd5 {[%clk 0:02:43]}  Ne8 {[%clk 0:02:43]} 12. O-O {[%clk 0:02:40]}  Nd6 {[%clk 0:02:43]} 13. Kh1 {[%clk 0:02:38]}  b6 {[%clk 0:02:37]} 14. a4 {[%clk 0:02:37]}  Nc5 {[%clk 0:02:36]} 15. Bc2 {[%clk 0:02:36]}  a5 {[%clk 0:02:36]} 16. Bxc5 {[%clk 0:01:34]}  bxc5 {[%clk 0:02:37]} 17. Nd2 {[%clk 0:01:24]}  Ba6 {[%clk 0:02:36]} 18. Rf3 {[%clk 0:01:23]}  Rb8 {[%clk 0:02:34]} 19. Rb1 {[%clk 0:01:17]}  Rb4 {[%clk 0:02:32]} 20. Bd3 {[%clk 0:00:59]}  Bxd3 {[%clk 0:02:30]} 21. Rxd3 {[%clk 0:01:00]}  Qb6 {[%clk 0:02:29]} 22. Qc2 {[%clk 0:00:50]}  c4 {[%clk 0:02:26]} 23. Rf3 {[%clk 0:00:47]}  Rb8 {[%clk 0:02:26]} 24. Nd1 {[%clk 0:00:34]}  Bh6 {[%clk 0:02:21]} 25. Nf1 {[%clk 0:00:23]}  Qd4 {[%clk 0:02:18]} 26. Nc3 {[%clk 0:00:20]}  f5 {[%clk 0:01:57]} 27. exf5 {[%clk 0:00:19]}  e4 {[%clk 0:01:53]} 28. Rh3 {[%clk 0:00:17]}  Nxf5 {[%clk 0:01:31]} 29. Qxe4 {[%clk 0:00:16]}  Qxe4 {[%clk 0:01:25]} 30. Nxe4 {[%clk 0:00:17]}  Bg7 {[%clk 0:01:23]} 31. g4 {[%clk 0:00:17]}  Nd4 {[%clk 0:01:20]} 32. d6 {[%clk 0:00:17]}  Rxb2 {[%clk 0:01:15]} 33. Rxb2 {[%clk 0:00:17]}  Rxb2 {[%clk 0:01:16]} 34. d7 {[%clk 0:00:16]}  Nc6 {[%clk 0:01:15]} 35. Re3 {[%clk 0:00:13]}  Rb1 {[%clk 0:01:05]} 36. Kg2 {[%clk 0:00:12]}  Rd1 {[%clk 0:01:04]} 37. Nc5 {[%clk 0:00:10]}  c3 {[%clk 0:01:03]} 38. Re8+ {[%clk 0:00:10]}  Kf7 {[%clk 0:01:03]} 39. Ne3 {[%clk 0:00:11]}  Rxd7 {[%clk 0:00:59]} 40. Rc8 {[%clk 0:00:10]}  Rd2+ {[%clk 0:00:58]} 41. Kf3 {[%clk 0:00:10]}  c2 {[%clk 0:00:28]} 42. Nb3 {[%clk 0:00:08]}  Rd3 {[%clk 0:00:10]} 43. Nc1 {[%clk 0:00:06]}  Ne5+ {[%clk 0:00:04]} 44. Ke4 {[%clk 0:00:06]}  Ra3 {[%clk 0:00:05]} 45. Rxc2 {[%clk 0:00:05]}  Rxa4+ {[%clk 0:00:05]} 46. Kd5 {[%clk 0:00:05]}  Nd7 {[%clk 0:00:05]} 47. Rc7 {[%clk 0:00:05]}  Rd4+ {[%clk 0:00:05]} 48. Kc6 {[%clk 0:00:06]}  Ke8 {[%clk 0:00:05]} 49. Rc8+ {[%clk 0:00:03]}  Ke7 {[%clk 0:00:05]} 50. Nd5+ {[%clk 0:00:04]}  Ke6 {[%clk 0:00:03]} 51. Nc7+ {[%clk 0:00:04]}  Ke7 {[%clk 0:00:04]} 52. Re8+ {[%clk 0:00:04]}  Kf7 {[%clk 0:00:04]} 53. Re1 {[%clk 0:00:02]}  Ne5+ {[%clk 0:00:04]} 54. Kc5 {[%clk 0:00:02]}  Rc4+ {[%clk 0:00:04]} 55. Kd6 {[%clk 0:00:02]}  a4 {[%clk 0:00:04]} 56. Rf1+ {[%clk 0:00:01]}  Kg8 {[%clk 0:00:04]} 57. Nd5 {[%clk 0:00:02]}  Rd4 {[%clk 0:00:03]} 58. Ke6 {[%clk 0:00:02]}  h5 {[%clk 0:00:03]} 59. gxh5 {[%clk 0:00:02]}  gxh5 {[%clk 0:00:04]} 60. Ne7+ {[%clk 0:00:03]}  Kh7 {[%clk 0:00:04]} 61. Ne2 {[%clk 0:00:03]}  Re4 {[%clk 0:00:04]} 62. Ng3 {[%clk 0:00:04]}  Rb4 {[%clk 0:00:03]} 63. Nxh5 {[%clk 0:00:04]}  Bh8 {[%clk 0:00:03]} 64. Nf6+ {[%clk 0:00:03]}  Kh6 {[%clk 0:00:03]} 65. Kxe5 {[%clk 0:00:04]}  Rb5+ {[%clk 0:00:02]} 66. Nd5 {[%clk 0:00:04]}  a3 {[%clk 0:00:02]} 67. Ke6 {[%clk 0:00:03]}  a2 {[%clk 0:00:02]} 68. Ra1 {[%clk 0:00:02]}  Ra5 {[%clk 0:00:01]} 69. h4 {[%clk 0:00:02]}  Ra7 {[%clk 0:00:02]} 70. Kf5 {[%clk 0:00:02]}  Ra6 {[%clk 0:00:03]} 71. Ke5 {[%clk 0:00:02]}  Ra5 {[%clk 0:00:03]} 72. Ke6 {[%clk 0:00:02]}  Ra6+ {[%clk 0:00:03]} 73. Kf5 {[%clk 0:00:03]}  Ra5 {[%clk 0:00:04]} 74. h5 {[%clk 0:00:03]}  Rxd5+ {[%clk 0:00:04]} 75. Nxd5 {[%clk 0:00:03]}  Bxa1 {[%clk 0:00:04]} 76. Nb4 {[%clk 0:00:04]}  Bg7 {[%clk 0:00:05]} 77. Nxa2 {[%clk 0:00:05]}  Kxh5 {[%clk 0:00:06]} 1/2-1/2


[Site "https://www.chess.com"]

[Event "Titled Tuesday Blitz March 14 Early 2023"]
[White "Eljanov, Pavel"]
[Black "Galchenko, Matvey"]
[WhiteFideId "14102951"]
[BlackFideId "24175480"]
[WhiteElo "2598"]
[BlackElo "2404"]
[Result "1-0"]
[Round "08"]
[TimeControl "180+2"]
[Date "2023.03.14"]
[WhiteClock "0:00:06"]
[BlackClock "0:00:01"]

1. c4 {[%clk 0:02:56]}  e6 {[%clk 0:02:57]} 2. g3 {[%clk 0:02:56]}  d5 {[%clk 0:02:57]} 3. Bg2 {[%clk 0:02:56]}  Nf6 {[%clk 0:02:58]} 4. Nf3 {[%clk 0:02:56]}  dxc4 {[%clk 0:02:55]} 5. O-O {[%clk 0:02:56]}  a6 {[%clk 0:02:55]} 6. Qc2 {[%clk 0:02:51]}  Nbd7 {[%clk 0:02:46]} 7. a4 {[%clk 0:02:43]}  Be7 {[%clk 0:02:08]} 8. Na3 {[%clk 0:02:42]}  O-O {[%clk 0:01:30]} 9. Nxc4 {[%clk 0:02:40]}  Rb8 {[%clk 0:01:29]} 10. d3 {[%clk 0:02:34]}  Nd5 {[%clk 0:01:16]} 11. Bd2 {[%clk 0:02:30]}  Nb4 {[%clk 0:00:57]} 12. Qb3 {[%clk 0:02:26]}  Nd5 {[%clk 0:00:47]} 13. Rfc1 {[%clk 0:02:23]}  b6 {[%clk 0:00:41]} 14. Nce5 {[%clk 0:02:20]}  Nxe5 {[%clk 0:00:35]} 15. Nxe5 {[%clk 0:02:20]}  Bb7 {[%clk 0:00:36]} 16. Nc6 {[%clk 0:02:19]}  Bxc6 {[%clk 0:00:36]} 17. Rxc6 {[%clk 0:02:20]}  Qd7 {[%clk 0:00:37]} 18. Rcc1 {[%clk 0:01:35]}  c5 {[%clk 0:00:37]} 19. Qc4 {[%clk 0:01:31]}  b5 {[%clk 0:00:35]} 20. axb5 {[%clk 0:01:31]}  axb5 {[%clk 0:00:36]} 21. Qg4 {[%clk 0:01:25]}  Rfc8 {[%clk 0:00:34]} 22. b3 {[%clk 0:01:16]}  Bf6 {[%clk 0:00:33]} 23. Ra5 {[%clk 0:01:13]}  Bb2 {[%clk 0:00:28]} 24. Rc2 {[%clk 0:01:10]}  Bd4 {[%clk 0:00:28]} 25. e3 {[%clk 0:01:06]}  Bf6 {[%clk 0:00:26]} 26. h4 {[%clk 0:01:06]}  Ne7 {[%clk 0:00:20]} 27. Be4 {[%clk 0:01:01]}  Nc6 {[%clk 0:00:21]} 28. Ra6 {[%clk 0:00:58]}  Ne5 {[%clk 0:00:19]} 29. Qe2 {[%clk 0:00:56]}  Rd8 {[%clk 0:00:18]} 30. Ba5 {[%clk 0:00:55]}  Rdc8 {[%clk 0:00:16]} 31. h5 {[%clk 0:00:55]}  h6 {[%clk 0:00:16]} 32. Bc3 {[%clk 0:00:53]}  Qd8 {[%clk 0:00:08]} 33. Rca2 {[%clk 0:00:47]}  Nd7 {[%clk 0:00:08]} 34. Ba5 {[%clk 0:00:41]}  Qe8 {[%clk 0:00:07]} 35. Be1 {[%clk 0:00:30]}  c4 {[%clk 0:00:08]} 36. d4 {[%clk 0:00:25]}  cxb3 {[%clk 0:00:08]} 37. Rb2 {[%clk 0:00:26]}  Nc5 {[%clk 0:00:05]} 38. dxc5 {[%clk 0:00:23]}  Bxb2 {[%clk 0:00:06]} 39. Qxb2 {[%clk 0:00:23]}  Rxc5 {[%clk 0:00:06]} 40. Qxb3 {[%clk 0:00:20]}  Rc1 {[%clk 0:00:06]} 41. Kf1 {[%clk 0:00:21]}  Qc8 {[%clk 0:00:06]} 42. Rd6 {[%clk 0:00:19]}  b4 {[%clk 0:00:05]} 43. Ke2 {[%clk 0:00:18]}  Qc7 {[%clk 0:00:05]} 44. Rd4 {[%clk 0:00:17]}  Qc5 {[%clk 0:00:04]} 45. Bd2 {[%clk 0:00:17]}  Rg1 {[%clk 0:00:02]} 46. Rxb4 {[%clk 0:00:14]}  Qxh5+ {[%clk 0:00:03]} 47. Bf3 {[%clk 0:00:13]}  Rxb4 {[%clk 0:00:03]} 48. Qxb4 {[%clk 0:00:13]}  Qf5 {[%clk 0:00:03]} 49. Be4 {[%clk 0:00:07]}  Qd5 {[%clk 0:00:01]} 50. Bxd5 {[%clk 0:00:06]} 1-0


[Site "https://www.chess.com"]

[Event "Titled Tuesday Blitz March 14 Early 2023"]
[White "Bews, Steven"]
[Black "Pranav, V"]
[WhiteFideId "2400529"]
[BlackFideId "25060783"]
[WhiteElo "2617"]
[BlackElo "2500"]
[Result "1-0"]
[Round "08"]
[TimeControl "180+2"]
[Date "2023.03.14"]
[WhiteClock "0:00:19"]
[BlackClock "0:00:01"]

1. e4 {[%clk 0:03:00]}  e5 {[%clk 0:02:59]} 2. Nf3 {[%clk 0:03:00]}  Nc6 {[%clk 0:02:59]} 3. Bb5 {[%clk 0:03:00]}  a6 {[%clk 0:03:00]} 4. Ba4 {[%clk 0:02:58]}  d6 {[%clk 0:03:00]} 5. c3 {[%clk 0:02:52]}  Bd7 {[%clk 0:03:01]} 6. O-O {[%clk 0:02:52]}  g5 {[%clk 0:03:00]} 7. d4 {[%clk 0:02:50]}  g4 {[%clk 0:03:01]} 8. Ne1 {[%clk 0:02:49]}  h5 {[%clk 0:03:01]} 9. f4 {[%clk 0:02:43]}  exd4 {[%clk 0:03:01]} 10. cxd4 {[%clk 0:02:43]}  d5 {[%clk 0:03:01]} 11. exd5 {[%clk 0:02:35]}  Nce7 {[%clk 0:02:55]} 12. Bb3 {[%clk 0:02:32]}  Nf6 {[%clk 0:02:54]} 13. Nc3 {[%clk 0:02:31]}  Bg7 {[%clk 0:02:54]} 14. Nd3 {[%clk 0:02:28]}  O-O {[%clk 0:02:50]} 15. f5 {[%clk 0:02:27]}  Nh7 {[%clk 0:02:30]} 16. f6 {[%clk 0:02:12]}  Bxf6 {[%clk 0:02:24]} 17. Ne5 {[%clk 0:02:10]}  Ng6 {[%clk 0:02:11]} 18. Ne4 {[%clk 0:01:34]}  Bxe5 {[%clk 0:01:36]} 19. dxe5 {[%clk 0:01:32]}  Qe7 {[%clk 0:01:37]} 20. Qd4 {[%clk 0:01:15]}  Qxe5 {[%clk 0:01:32]} 21. Qxe5 {[%clk 0:01:04]}  Nxe5 {[%clk 0:01:33]} 22. Bf4 {[%clk 0:01:03]}  Rfe8 {[%clk 0:00:47]} 23. Nc5 {[%clk 0:01:01]}  Bb5 {[%clk 0:00:46]} 24. Rfe1 {[%clk 0:01:01]}  b6 {[%clk 0:00:34]} 25. Bxe5 {[%clk 0:00:48]}  bxc5 {[%clk 0:00:32]} 26. Bxc7 {[%clk 0:00:49]}  c4 {[%clk 0:00:32]} 27. Bc2 {[%clk 0:00:47]}  Nf6 {[%clk 0:00:33]} 28. d6 {[%clk 0:00:42]}  Bd7 {[%clk 0:00:32]} 29. Rad1 {[%clk 0:00:39]}  h4 {[%clk 0:00:24]} 30. Re7 {[%clk 0:00:38]}  Rac8 {[%clk 0:00:18]} 31. Ba5 {[%clk 0:00:27]}  g3 {[%clk 0:00:06]} 32. hxg3 {[%clk 0:00:22]}  Rxe7 {[%clk 0:00:04]} 33. dxe7 {[%clk 0:00:21]}  Be8 {[%clk 0:00:03]} 34. Rd8 {[%clk 0:00:20]}  Rc6 {[%clk 0:00:01]} 35. Bc3 {[%clk 0:00:19]}  Re6 {[%clk 0:00:01]} 36. Bxf6 {[%clk 0:00:19]} 1-0


[Site "https://www.chess.com"]